[Event "Late-Titled-Tuesday-Blitz-September-12-2023"]
[Site "Chess.com"]
[Date "2023.09.12"]
[Round "9"]
[White "Igor_Lysyj"]
[Black "FredyMatsuura"]
[Result "1-0"]
[WhiteElo "2815"]
[BlackElo "2364"]
[TimeControl "180+1"]
[EndTime "15:38:48 PDT"]
[Termination "Igor_Lysyj won on time"]

1. d4 {[%clk 0:02:59.9]} 1... e6 {[%clk 0:02:59.4]} 2. Nf3 {[%clk 0:02:56]} 2...
f5 {[%clk 0:02:59.4]} 3. g3 {[%clk 0:02:51]} 3... Nf6 {[%clk 0:02:59.3]} 4. c4
{[%clk 0:02:49.6]} 4... d5 {[%clk 0:02:58]} 5. Bf4 {[%clk 0:02:49.3]} 5... c6
{[%clk 0:02:56.4]} 6. Bg2 {[%clk 0:02:48.4]} 6... Be7 {[%clk 0:02:53.4]} 7. O-O
{[%clk 0:02:48]} 7... O-O {[%clk 0:02:54]} 8. Qc2 {[%clk 0:02:47.7]} 8... Ne4
{[%clk 0:02:52]} 9. Nc3 {[%clk 0:02:46.6]} 9... Nd7 {[%clk 0:02:50.4]} 10. Rad1
{[%clk 0:02:45.8]} 10... Qe8 {[%clk 0:02:40.4]} 11. Nxe4 {[%clk 0:02:41.5]}
11... fxe4 {[%clk 0:02:39.2]} 12. Ne5 {[%clk 0:02:41.7]} 12... Nxe5 {[%clk
0:02:38.1]} 13. Bxe5 {[%clk 0:02:41.4]} 13... Bf6 {[%clk 0:02:34.9]} 14. Bxf6
{[%clk 0:02:37.5]} 14... Rxf6 {[%clk 0:02:33.9]} 15. f3 {[%clk 0:02:38]} 15...
exf3 {[%clk 0:02:30.8]} 16. exf3 {[%clk 0:02:37.7]} 16... dxc4 {[%clk
0:02:19.8]} 17. Qxc4 {[%clk 0:02:36.3]} 17... Bd7 {[%clk 0:02:14.7]} 18. f4
{[%clk 0:02:36.5]} 18... Rd8 {[%clk 0:02:13.2]} 19. Rfe1 {[%clk 0:02:35.3]}
19... Kh8 {[%clk 0:02:12.4]} 20. Re3 {[%clk 0:02:32.5]} 20... Qf8 {[%clk
0:02:10]} 21. Qc5 {[%clk 0:02:26.9]} 21... a6 {[%clk 0:01:55.6]} 22. b4 {[%clk
0:02:19.1]} 22... Bc8 {[%clk 0:01:51.1]} 23. Re5 {[%clk 0:02:12.3]} 23... Kg8
{[%clk 0:01:42.3]} 24. Be4 {[%clk 0:02:08.8]} 24... Qxc5 {[%clk 0:01:32.3]} 25.
bxc5 {[%clk 0:02:07]} 25... g6 {[%clk 0:01:29.6]} 26. Kf2 {[%clk 0:02:05.6]}
26... Kf8 {[%clk 0:01:29.5]} 27. Ke3 {[%clk 0:02:05.5]} 27... Ke7 {[%clk
0:01:29.8]} 28. g4 {[%clk 0:01:55.2]} 28... Rdf8 {[%clk 0:01:26.4]} 29. Rf1
{[%clk 0:01:54.5]} 29... Kd8 {[%clk 0:01:20.2]} 30. h4 {[%clk 0:01:51.5]} 30...
Bd7 {[%clk 0:01:17.6]} 31. h5 {[%clk 0:01:51.3]} 31... gxh5 {[%clk 0:01:17.3]}
32. Rxh5 {[%clk 0:01:50.1]} 32... h6 {[%clk 0:01:15.7]} 33. Rf3 {[%clk
0:01:45.2]} 33... Ke7 {[%clk 0:01:07.1]} 34. g5 {[%clk 0:01:39.7]} 34... hxg5
{[%clk 0:01:05.8]} 35. Rh7+ {[%clk 0:01:35.1]} 35... R6f7 {[%clk 0:01:02.5]} 36.
Rxf7+ {[%clk 0:01:28.3]} 36... Rxf7 {[%clk 0:01:01]} 37. fxg5 {[%clk 0:01:28.3]}
37... Rxf3+ {[%clk 0:00:56.5]} 38. Kxf3 {[%clk 0:01:27.5]} 38... Be8 {[%clk
0:00:37.5]} 39. Kf4 {[%clk 0:01:27.4]} 39... Bh5 {[%clk 0:00:31.4]} 40. Ke5
{[%clk 0:01:27]} 40... Bg4 {[%clk 0:00:18.5]} 41. Bh7 {[%clk 0:01:25.2]} 41...
Be2 {[%clk 0:00:16.1]} 42. a3 {[%clk 0:01:20.2]} 42... Bd1 {[%clk 0:00:16.3]}
43. Bg8 {[%clk 0:01:16.9]} 43... Bg4 {[%clk 0:00:15.3]} 44. g6 {[%clk
0:01:16.6]} 44... Kf8 {[%clk 0:00:02.3]} 45. Bxe6 {[%clk 0:01:14.9]} 45... Be2
{[%clk 0:00:02.2]} 46. Kf6 {[%clk 0:01:14]} 1-0

[Event "Late-Titled-Tuesday-Blitz-September-12-2023"]
[Site "Chess.com"]
[Date "2023.09.12"]
[Round "9"]
[White "ahkashefi2800"]
[Black "ArturoCaceres"]
[Result "1-0"]
[WhiteElo "2623"]
[BlackElo "2470"]
[TimeControl "180+1"]
[EndTime "15:38:48 PDT"]
[Termination "ahkashefi2800 won by checkmate"]

1. d4 {[%clk 0:02:52.7]} 1... Nf6 {[%clk 0:02:57.3]} 2. Nf3 {[%clk 0:02:52.3]}
2... e6 {[%clk 0:02:57.2]} 3. g3 {[%clk 0:02:46.6]} 3... b6 {[%clk 0:02:57.1]}
4. Bg2 {[%clk 0:02:47.5]} 4... Bb7 {[%clk 0:02:57.4]} 5. O-O {[%clk 0:02:48.4]}
5... Be7 {[%clk 0:02:57.9]} 6. Bg5 {[%clk 0:02:49]} 6... O-O {[%clk 0:02:58.2]}
7. Qd3 {[%clk 0:02:49.6]} 7... h6 {[%clk 0:02:54.9]} 8. Bxf6 {[%clk 0:02:50]}
8... Bxf6 {[%clk 0:02:55.3]} 9. Ng5 {[%clk 0:02:50.4]} 9... hxg5 {[%clk
0:02:46.5]} 10. Bxb7 {[%clk 0:02:49.7]} 10... Nc6 {[%clk 0:02:46.6]} 11. Bxa8
{[%clk 0:02:50.2]} 11... Qxa8 {[%clk 0:02:47.1]} 12. c3 {[%clk 0:02:49.9]} 12...
d5 {[%clk 0:02:45.6]} 13. Nd2 {[%clk 0:02:49]} 13... e5 {[%clk 0:02:42.4]} 14.
e3 {[%clk 0:02:43.1]} 14... e4 {[%clk 0:02:40.9]} 15. Qb5 {[%clk 0:02:38.8]}
15... a6 {[%clk 0:02:38.2]} 16. Qb3 {[%clk 0:02:36.6]} 16... Ne7 {[%clk
0:02:21.3]} 17. c4 {[%clk 0:02:36.2]} 17... Re8 {[%clk 0:02:08]} 18. Rac1 {[%clk
0:02:32.4]} 18... Qb7 {[%clk 0:02:07.4]} 19. Rc2 {[%clk 0:02:29.9]} 19... g6
{[%clk 0:02:01.8]} 20. Rfc1 {[%clk 0:02:30.3]} 20... Kg7 {[%clk 0:02:01.4]} 21.
a4 {[%clk 0:02:26.6]} 21... Qc8 {[%clk 0:01:23.7]} 22. cxd5 {[%clk 0:02:22.2]}
22... Qh3 {[%clk 0:01:21.9]} 23. Rxc7 {[%clk 0:02:20.8]} 23... Rh8 {[%clk
0:01:03.7]} 24. Nf1 {[%clk 0:02:20.2]} 24... Nf5 {[%clk 0:00:35.4]} 25. d6
{[%clk 0:02:15.4]} 25... Rf8 {[%clk 0:00:35.3]} 26. Qd5 {[%clk 0:02:07.5]} 26...
Qg4 {[%clk 0:00:35.2]} 27. d7 {[%clk 0:02:04.5]} 27... Nh4 {[%clk 0:00:30]} 28.
Rc8 {[%clk 0:01:30.8]} 28... Nf3+ {[%clk 0:00:07.1]} 29. Kh1 {[%clk 0:01:25.2]}
29... Bd8 {[%clk 0:00:07.8]} 30. Qa8 {[%clk 0:00:47.8]} 30... Rh8 {[%clk
0:00:07.5]} 31. Rxd8 {[%clk 0:00:43.8]} 31... Rxh2+ {[%clk 0:00:01.9]} 32. Nxh2
{[%clk 0:00:43.9]} 32... Qh3 {[%clk 0:00:02.5]} 33. Rg8+ {[%clk 0:00:44.1]}
33... Kf6 {[%clk 0:00:02.1]} 34. d8=Q+ {[%clk 0:00:44.4]} 34... Kf5 {[%clk
0:00:02]} 35. Qac8# {[%clk 0:00:44.5]} 1-0

[Event "Late-Titled-Tuesday-Blitz-September-12-2023"]
[Site "Chess.com"]
[Date "2023.09.12"]
[Round "9"]
[White "MikaelyanArman"]
[Black "angryspacevoid"]
[Result "0-1"]
[WhiteElo "2925"]
[BlackElo "2597"]
[TimeControl "180+1"]
[EndTime "15:38:50 PDT"]
[Termination "angryspacevoid won by resignation"]

1. d4 {[%clk 0:03:00.9]} 1... d5 {[%clk 0:02:59.4]} 2. c4 {[%clk 0:03:01.1]}
2... e6 {[%clk 0:02:58.8]} 3. Nf3 {[%clk 0:03:01.4]} 3... Nf6 {[%clk 0:02:58.8]}
4. Nc3 {[%clk 0:03:01.4]} 4... dxc4 {[%clk 0:02:58.8]} 5. e3 {[%clk 0:03:00.5]}
5... a6 {[%clk 0:02:56.9]} 6. Bxc4 {[%clk 0:02:59.6]} 6... b5 {[%clk 0:02:57.5]}
7. Be2 {[%clk 0:03:00.2]} 7... c5 {[%clk 0:02:53.2]} 8. O-O {[%clk 0:02:56.7]}
8... Bb7 {[%clk 0:02:50.6]} 9. dxc5 {[%clk 0:02:56]} 9... Qxd1 {[%clk
0:02:48.8]} 10. Rxd1 {[%clk 0:02:56.9]} 10... Bxc5 {[%clk 0:02:48.9]} 11. Nd2
{[%clk 0:02:57.6]} 11... Nbd7 {[%clk 0:02:42.8]} 12. Nb3 {[%clk 0:02:56.4]}
12... Be7 {[%clk 0:02:36.8]} 13. Na5 {[%clk 0:02:55.1]} 13... O-O-O {[%clk
0:02:33.2]} 14. Bd2 {[%clk 0:02:41.2]} 14... Ba8 {[%clk 0:02:29.9]} 15. a4
{[%clk 0:02:37.6]} 15... b4 {[%clk 0:02:23.6]} 16. Bxa6+ {[%clk 0:02:33.2]}
16... Kc7 {[%clk 0:02:23.2]} 17. Rac1 {[%clk 0:01:32.7]} 17... Kb6 {[%clk
0:02:11.9]} 18. Be2 {[%clk 0:00:45.8]} 18... Kxa5 {[%clk 0:02:04.5]} 19. Nb5
{[%clk 0:00:46.3]} 19... Rc8 {[%clk 0:01:55]} 20. Na7 {[%clk 0:00:45.9]} 20...
Rxc1 {[%clk 0:01:42.3]} 21. Rxc1 {[%clk 0:00:46.8]} 21... Bc5 {[%clk 0:01:33.9]}
22. Nb5 {[%clk 0:00:47.1]} 22... Rc8 {[%clk 0:01:17.1]} 23. Nd6 {[%clk
0:00:46.8]} 23... Rf8 {[%clk 0:01:01.6]} 24. Nc4+ {[%clk 0:00:45.7]} 24... Kxa4
{[%clk 0:01:00.8]} 25. b3+ {[%clk 0:00:27.5]} 25... Kb5 {[%clk 0:00:39.3]} 26.
Ra1 {[%clk 0:00:27.7]} 26... Ne4 {[%clk 0:00:24]} 27. Nd6+ {[%clk 0:00:24.5]}
27... Kb6 {[%clk 0:00:23.3]} 28. Ra6+ {[%clk 0:00:25.1]} 28... Kc7 {[%clk
0:00:23.6]} 29. Nb5+ {[%clk 0:00:24]} 29... Kb7 {[%clk 0:00:22.5]} 30. Ra2
{[%clk 0:00:19.6]} 30... Nxd2 {[%clk 0:00:20.4]} 31. Rxd2 {[%clk 0:00:20.5]}
31... Nf6 {[%clk 0:00:16.8]} 32. f3 {[%clk 0:00:17.5]} 32... Bxe3+ {[%clk
0:00:16.5]} 33. Kf1 {[%clk 0:00:17.7]} 33... Bxd2 {[%clk 0:00:17]} 0-1

[Event "Late-Titled-Tuesday-Blitz-September-12-2023"]
[Site "Chess.com"]
[Date "2023.09.12"]
[Round "9"]
[White "Zkid"]
[Black "Oleksandr_Bortnyk"]
[Result "1-0"]
[WhiteElo "2948"]
[BlackElo "3001"]
[TimeControl "180+1"]
[EndTime "15:38:55 PDT"]
[Termination "Zkid won on time"]

1. e4 {[%clk 0:03:00.9]} 1... Nf6 {[%clk 0:02:58.2]} 2. e5 {[%clk 0:03:00.7]}
2... Nd5 {[%clk 0:02:58]} 3. d4 {[%clk 0:03:01.3]} 3... d6 {[%clk 0:02:58.5]} 4.
Nf3 {[%clk 0:03:01.5]} 4... dxe5 {[%clk 0:02:59.1]} 5. Nxe5 {[%clk 0:03:02.4]}
5... c6 {[%clk 0:02:59.8]} 6. Be2 {[%clk 0:03:01.5]} 6... Bf5 {[%clk 0:03:00.1]}
7. O-O {[%clk 0:03:01.5]} 7... Nd7 {[%clk 0:03:00.4]} 8. Nf3 {[%clk 0:03:01.9]}
8... e6 {[%clk 0:03:01.1]} 9. c4 {[%clk 0:03:01.6]} 9... N5f6 {[%clk 0:03:01.8]}
10. Nc3 {[%clk 0:03:01.8]} 10... Bd6 {[%clk 0:03:02.3]} 11. Nh4 {[%clk
0:03:00.7]} 11... Bg6 {[%clk 0:03:02.6]} 12. Nxg6 {[%clk 0:02:57.6]} 12... hxg6
{[%clk 0:03:03.5]} 13. g3 {[%clk 0:02:58.2]} 13... O-O {[%clk 0:03:00.6]} 14.
Bf3 {[%clk 0:02:53.7]} 14... e5 {[%clk 0:02:54]} 15. d5 {[%clk 0:02:45.7]} 15...
Qc7 {[%clk 0:02:54.1]} 16. dxc6 {[%clk 0:02:44.6]} 16... bxc6 {[%clk 0:02:54.2]}
17. Qa4 {[%clk 0:02:42.7]} 17... Rac8 {[%clk 0:02:30.7]} 18. b4 {[%clk
0:02:38.8]} 18... a5 {[%clk 0:01:31.6]} 19. c5 {[%clk 0:02:15.3]} 19... Be7
{[%clk 0:01:28.9]} 20. a3 {[%clk 0:02:13.3]} 20... Rfe8 {[%clk 0:00:55.1]} 21.
Re1 {[%clk 0:02:04.4]} 21... e4 {[%clk 0:00:42.6]} 22. Nxe4 {[%clk 0:01:48.3]}
22... Nxe4 {[%clk 0:00:39.2]} 23. Bxe4 {[%clk 0:01:41.5]} 23... Bf6 {[%clk
0:00:32]} 24. Bf4 {[%clk 0:01:37.5]} 24... Be5 {[%clk 0:00:29.6]} 25. Bxe5
{[%clk 0:01:31]} 25... Rxe5 {[%clk 0:00:29.2]} 26. Bg2 {[%clk 0:01:23]} 26...
axb4 {[%clk 0:00:29.4]} 27. axb4 {[%clk 0:01:21.2]} 27... g5 {[%clk 0:00:27.2]}
28. Red1 {[%clk 0:01:16.9]} 28... Re2 {[%clk 0:00:15.7]} 29. Rd6 {[%clk
0:01:11.2]} 29... Ne5 {[%clk 0:00:15.2]} 30. Qd1 {[%clk 0:01:08.6]} 30... Rb2
{[%clk 0:00:05.8]} 31. Qd4 {[%clk 0:01:06.3]} 31... Re2 {[%clk 0:00:06]} 32. Kf1
{[%clk 0:00:54.4]} 32... Qe7 {[%clk 0:00:01.4]} 33. Kxe2 {[%clk 0:00:50.9]}
33... Nf3+ {[%clk 0:00:01.8]} 34. Kxf3 {[%clk 0:00:46.2]} 34... g4+ {[%clk
0:00:02.2]} 35. Qxg4 {[%clk 0:00:45]} 35... Re8 {[%clk 0:00:02.6]} 36. Bf1
{[%clk 0:00:39.4]} 36... Qe5 {[%clk 0:00:01.5]} 37. Rad1 {[%clk 0:00:35.6]}
37... g5 {[%clk 0:00:01.7]} 38. Kg2 {[%clk 0:00:34.8]} 1-0

[Event "Late-Titled-Tuesday-Blitz-September-12-2023"]
[Site "Chess.com"]
[Date "2023.09.12"]
[Round "9"]
[White "tptagain"]
[Black "ChristopherYoo"]
[Result "1-0"]
[WhiteElo "2964"]
[BlackElo "3011"]
[TimeControl "180+1"]
[EndTime "15:39:07 PDT"]
[Termination "tptagain won on time"]

1. Nf3 {[%clk 0:03:00.9]} 1... c5 {[%clk 0:02:42.9]} 2. b3 {[%clk 0:02:59.9]}
2... d5 {[%clk 0:02:42]} 3. e3 {[%clk 0:02:59.7]} 3... a6 {[%clk 0:02:41.8]} 4.
Bb2 {[%clk 0:02:59.6]} 4... Nc6 {[%clk 0:02:42.2]} 5. g3 {[%clk 0:02:59.5]} 5...
Qc7 {[%clk 0:02:37.3]} 6. c4 {[%clk 0:02:59.9]} 6... dxc4 {[%clk 0:02:28.6]} 7.
bxc4 {[%clk 0:03:00]} 7... e5 {[%clk 0:02:15]} 8. Nc3 {[%clk 0:02:53.1]} 8...
Bd6 {[%clk 0:02:14.8]} 9. Nd5 {[%clk 0:02:30.4]} 9... Qd8 {[%clk 0:02:08]} 10.
Bg2 {[%clk 0:02:29.7]} 10... Nge7 {[%clk 0:00:28]} 11. O-O {[%clk 0:02:21.6]}
11... O-O {[%clk 0:00:26.4]} 12. Qb1 {[%clk 0:02:07.7]} 12... f6 {[%clk
0:00:18.8]} 13. Nh4 {[%clk 0:01:50.8]} 13... Kh8 {[%clk 0:00:18.2]} 14. f4
{[%clk 0:01:42.5]} 14... exf4 {[%clk 0:00:18]} 15. gxf4 {[%clk 0:01:40.7]} 15...
Rb8 {[%clk 0:00:18.2]} 16. Qd1 {[%clk 0:01:33.4]} 16... b5 {[%clk 0:00:17.9]}
17. Nxe7 {[%clk 0:01:20.3]} 17... Nxe7 {[%clk 0:00:18.8]} 18. Kh1 {[%clk
0:00:58.9]} 18... Be6 {[%clk 0:00:18.8]} 19. cxb5 {[%clk 0:00:54.5]} 19... axb5
{[%clk 0:00:19.7]} 20. Rg1 {[%clk 0:00:46.8]} 20... Qd7 {[%clk 0:00:19.1]} 21.
Be4 {[%clk 0:00:45.6]} 21... Bd5 {[%clk 0:00:10.5]} 22. Bxd5 {[%clk 0:00:45.9]}
22... Nxd5 {[%clk 0:00:11.4]} 23. Qh5 {[%clk 0:00:46.4]} 23... Qf7 {[%clk
0:00:10.5]} 24. Qf3 {[%clk 0:00:31.5]} 24... Rfe8 {[%clk 0:00:07.9]} 25. Rxg7
{[%clk 0:00:27.5]} 25... Qxg7 {[%clk 0:00:05.9]} 26. Qxd5 {[%clk 0:00:26.1]}
26... Be7 {[%clk 0:00:02.1]} 27. Rg1 {[%clk 0:00:23.2]} 27... Rbd8 {[%clk
0:00:01.7]} 28. Qe6 {[%clk 0:00:17]} 28... Qh6 {[%clk 0:00:01.4]} 29. Nf5 {[%clk
0:00:15.7]} 29... Qf8 {[%clk 0:00:02.2]} 30. Rg8+ {[%clk 0:00:12.6]} 30... Qxg8
{[%clk 0:00:01.6]} 31. Bxf6+ {[%clk 0:00:13.2]} 1-0

[Event "Late-Titled-Tuesday-Blitz-September-12-2023"]
[Site "Chess.com"]
[Date "2023.09.12"]
[Round "9"]
[White "BigAl"]
[Black "RIPOL"]
[Result "1-0"]
[WhiteElo "2555"]
[BlackElo "2470"]
[TimeControl "180+1"]
[EndTime "15:39:07 PDT"]
[Termination "BigAl won by resignation"]

1. Nf3 {[%clk 0:03:00]} 1... d5 {[%clk 0:02:58.8]} 2. g3 {[%clk 0:03:00]} 2...
Bg4 {[%clk 0:02:56.4]} 3. Bg2 {[%clk 0:03:00.6]} 3... Nd7 {[%clk 0:02:55.2]} 4.
O-O {[%clk 0:03:00.7]} 4... c6 {[%clk 0:02:54.4]} 5. d3 {[%clk 0:03:01.1]} 5...
e5 {[%clk 0:02:52.5]} 6. c4 {[%clk 0:03:00.8]} 6... dxc4 {[%clk 0:02:41.4]} 7.
dxc4 {[%clk 0:03:00.6]} 7... Ngf6 {[%clk 0:02:38.2]} 8. Nc3 {[%clk 0:02:59.9]}
8... Be7 {[%clk 0:02:33.5]} 9. Qc2 {[%clk 0:02:58.9]} 9... O-O {[%clk
0:02:31.9]} 10. Rd1 {[%clk 0:02:58.7]} 10... Qc7 {[%clk 0:02:30.3]} 11. b3
{[%clk 0:02:58.7]} 11... Rfd8 {[%clk 0:02:22.3]} 12. Bb2 {[%clk 0:02:54.1]}
12... a5 {[%clk 0:02:21]} 13. Nh4 {[%clk 0:02:52.1]} 13... h6 {[%clk 0:02:12.6]}
14. h3 {[%clk 0:02:09.7]} 14... Be6 {[%clk 0:02:04.8]} 15. Nf5 {[%clk
0:01:52.7]} 15... Bf8 {[%clk 0:01:52.8]} 16. Rd2 {[%clk 0:01:51.3]} 16... Nc5
{[%clk 0:01:44.4]} 17. Rad1 {[%clk 0:01:49.8]} 17... Rxd2 {[%clk 0:01:42.8]} 18.
Rxd2 {[%clk 0:01:49.8]} 18... Rd8 {[%clk 0:01:40.6]} 19. Ne3 {[%clk 0:01:44.4]}
19... Rd4 {[%clk 0:01:28.7]} 20. Nb1 {[%clk 0:01:27.3]} 20... Rxd2 {[%clk
0:01:26.3]} 21. Nxd2 {[%clk 0:01:28]} 21... Nfd7 {[%clk 0:01:20.1]} 22. Bc3
{[%clk 0:01:04.9]} 22... Qb6 {[%clk 0:00:51.5]} 23. Nf3 {[%clk 0:00:53.5]} 23...
Qc7 {[%clk 0:00:47.4]} 24. Nd2 {[%clk 0:00:51.8]} 24... Qb6 {[%clk 0:00:46.5]}
25. Nf3 {[%clk 0:00:51.9]} 25... Qc7 {[%clk 0:00:46.5]} 26. Ng4 {[%clk 0:00:45]}
26... Bxg4 {[%clk 0:00:32.4]} 27. hxg4 {[%clk 0:00:45.1]} 27... e4 {[%clk
0:00:32.2]} 28. Nd4 {[%clk 0:00:42.2]} 28... e3 {[%clk 0:00:32.2]} 29. f4 {[%clk
0:00:39.8]} 29... Nf6 {[%clk 0:00:27.2]} 30. Bf3 {[%clk 0:00:39.3]} 30... Qd7
{[%clk 0:00:20.2]} 31. Nf5 {[%clk 0:00:37.3]} 31... Qe6 {[%clk 0:00:18.9]} 32.
Qc1 {[%clk 0:00:31.4]} 32... Nce4 {[%clk 0:00:17.3]} 33. Qxe3 {[%clk 0:00:24.1]}
33... Nxc3 {[%clk 0:00:15.5]} 34. Qxc3 {[%clk 0:00:24.1]} 34... Bc5+ {[%clk
0:00:15.5]} 35. Kg2 {[%clk 0:00:24.2]} 35... g6 {[%clk 0:00:15.2]} 36. Nxh6+
{[%clk 0:00:21]} 36... Kh7 {[%clk 0:00:15.1]} 37. g5 {[%clk 0:00:20.5]} 37...
Nd5 {[%clk 0:00:13.7]} 38. cxd5 {[%clk 0:00:20.2]} 1-0

[Event "Late-Titled-Tuesday-Blitz-September-12-2023"]
[Site "Chess.com"]
[Date "2023.09.12"]
[Round "9"]
[White "AlejandroBalde"]
[Black "CURRUTACO59"]
[Result "0-1"]
[WhiteElo "2000"]
[BlackElo "2253"]
[TimeControl "180+1"]
[EndTime "15:39:09 PDT"]
[Termination "CURRUTACO59 won by resignation"]

1. e4 {[%clk 0:02:59]} 1... e5 {[%clk 0:02:56.7]} 2. Nf3 {[%clk 0:02:57.4]} 2...
Nc6 {[%clk 0:02:55.9]} 3. Bb5 {[%clk 0:02:57]} 3... Bc5 {[%clk 0:02:55.6]} 4.
O-O {[%clk 0:02:56.4]} 4... Nd4 {[%clk 0:02:54.4]} 5. Bc4 {[%clk 0:02:53.8]}
5... d6 {[%clk 0:02:44.2]} 6. c3 {[%clk 0:02:48.9]} 6... Nxf3+ {[%clk
0:02:43.6]} 7. Qxf3 {[%clk 0:02:49.4]} 7... Nf6 {[%clk 0:02:43.8]} 8. h3 {[%clk
0:02:43.6]} 8... O-O {[%clk 0:02:33.9]} 9. d3 {[%clk 0:02:42.9]} 9... h6 {[%clk
0:02:30.7]} 10. Be3 {[%clk 0:02:41.9]} 10... Bb6 {[%clk 0:02:18.4]} 11. Bxb6
{[%clk 0:02:28.5]} 11... axb6 {[%clk 0:02:19.3]} 12. d4 {[%clk 0:02:26.2]} 12...
Qe7 {[%clk 0:02:12.5]} 13. Nd2 {[%clk 0:02:21.1]} 13... Be6 {[%clk 0:02:11.7]}
14. dxe5 {[%clk 0:02:06.7]} 14... dxe5 {[%clk 0:02:11.2]} 15. a3 {[%clk
0:01:56.5]} 15... Rad8 {[%clk 0:02:03]} 16. Bxe6 {[%clk 0:01:47]} 16... Rxd2
{[%clk 0:01:55.4]} 17. Bd5 {[%clk 0:01:42.2]} 17... c6 {[%clk 0:01:48.4]} 18.
Ba2 {[%clk 0:01:35.4]} 18... Rxb2 {[%clk 0:01:46]} 19. Rfb1 {[%clk 0:01:35.9]}
19... Rxb1+ {[%clk 0:01:40.8]} 20. Bxb1 {[%clk 0:01:36.2]} 20... Ra8 {[%clk
0:01:34.1]} 21. a4 {[%clk 0:01:33.1]} 21... Qc5 {[%clk 0:01:29.4]} 22. Qd3
{[%clk 0:01:23.6]} 22... g6 {[%clk 0:01:18.2]} 23. Bc2 {[%clk 0:01:13.8]} 23...
Kg7 {[%clk 0:01:14.8]} 24. Bb3 {[%clk 0:01:10.1]} 24... b5 {[%clk 0:01:11.6]}
25. a5 {[%clk 0:01:08.8]} 25... b4 {[%clk 0:01:04.7]} 26. cxb4 {[%clk
0:00:49.6]} 26... Qxb4 {[%clk 0:01:04.8]} 27. f3 {[%clk 0:00:31.4]} 27... Rxa5
{[%clk 0:01:01.6]} 28. Rxa5 {[%clk 0:00:30.8]} 28... Qxa5 {[%clk 0:01:01.7]} 29.
Qd6 {[%clk 0:00:22.9]} 29... Qc3 {[%clk 0:00:40.2]} 30. Be6 {[%clk 0:00:15.3]}
30... Qd4+ {[%clk 0:00:32.6]} 31. Qxd4 {[%clk 0:00:11.5]} 31... exd4 {[%clk
0:00:33.5]} 32. Bc8 {[%clk 0:00:11.4]} 32... b6 {[%clk 0:00:30.7]} 33. Kf2
{[%clk 0:00:11.5]} 33... Ng8 {[%clk 0:00:19.9]} 34. Ke2 {[%clk 0:00:09.7]} 34...
Ne7 {[%clk 0:00:19.8]} 35. Kd3 {[%clk 0:00:10]} 35... Nxc8 {[%clk 0:00:19.2]}
0-1

[Event "Late-Titled-Tuesday-Blitz-September-12-2023"]
[Site "Chess.com"]
[Date "2023.09.12"]
[Round "9"]
[White "Perecke"]
[Black "farzadbfd"]
[Result "1-0"]
[WhiteElo "2529"]
[BlackElo "2689"]
[TimeControl "180+1"]
[EndTime "15:39:13 PDT"]
[Termination "Perecke won by resignation"]

1. e4 {[%clk 0:02:50.4]} 1... e5 {[%clk 0:02:59.8]} 2. Nf3 {[%clk 0:02:50.5]}
2... Nc6 {[%clk 0:02:59.6]} 3. Bb5 {[%clk 0:02:50.5]} 3... a6 {[%clk 0:03:00]}
4. Ba4 {[%clk 0:02:50.5]} 4... Nf6 {[%clk 0:02:59.9]} 5. O-O {[%clk 0:02:51.1]}
5... d6 {[%clk 0:02:59.7]} 6. c3 {[%clk 0:02:44.7]} 6... g6 {[%clk 0:02:58.1]}
7. d4 {[%clk 0:02:44.8]} 7... Bd7 {[%clk 0:02:58.3]} 8. Re1 {[%clk 0:02:43.2]}
8... Bg7 {[%clk 0:02:58.2]} 9. d5 {[%clk 0:02:43.5]} 9... Nb8 {[%clk 0:02:57.9]}
10. c4 {[%clk 0:02:43.9]} 10... Bxa4 {[%clk 0:02:57.3]} 11. Qxa4+ {[%clk
0:02:44.8]} 11... Nbd7 {[%clk 0:02:57.4]} 12. Nc3 {[%clk 0:02:42.1]} 12... a5
{[%clk 0:02:47.8]} 13. Qc2 {[%clk 0:02:39.1]} 13... Nc5 {[%clk 0:02:42.4]} 14.
Be3 {[%clk 0:02:38.7]} 14... Nfd7 {[%clk 0:02:38.3]} 15. b3 {[%clk 0:02:32.2]}
15... O-O {[%clk 0:02:37.1]} 16. a3 {[%clk 0:02:32.4]} 16... f5 {[%clk
0:02:33.3]} 17. b4 {[%clk 0:02:27.2]} 17... axb4 {[%clk 0:02:13.3]} 18. axb4
{[%clk 0:02:27.3]} 18... Rxa1 {[%clk 0:02:06.2]} 19. Rxa1 {[%clk 0:02:28.2]}
19... Na6 {[%clk 0:02:06]} 20. Ng5 {[%clk 0:02:15.4]} 20... Qe7 {[%clk
0:01:18.3]} 21. Ne6 {[%clk 0:02:10.8]} 21... Rc8 {[%clk 0:01:09.4]} 22. exf5
{[%clk 0:02:00.3]} 22... gxf5 {[%clk 0:01:03]} 23. Qxf5 {[%clk 0:01:52.6]} 23...
Nxb4 {[%clk 0:01:03.1]} 24. Rb1 {[%clk 0:01:48.7]} 24... c5 {[%clk 0:00:35.8]}
25. Ne4 {[%clk 0:01:41.9]} 25... Ra8 {[%clk 0:00:19]} 26. Bg5 {[%clk 0:01:27.6]}
26... Qf7 {[%clk 0:00:18.5]} 27. Nxg7 {[%clk 0:01:27.6]} 27... Kxg7 {[%clk
0:00:16.6]} 28. Bh6+ {[%clk 0:01:27.8]} 28... Kg8 {[%clk 0:00:16.4]} 29. Qxd7
{[%clk 0:01:22.6]} 29... Qxd7 {[%clk 0:00:16.3]} 30. Nf6+ {[%clk 0:01:22.9]}
30... Kf7 {[%clk 0:00:16.4]} 31. Nxd7 {[%clk 0:01:23.8]} 31... Ke7 {[%clk
0:00:12.8]} 32. Nf8 {[%clk 0:01:21.5]} 32... Kf7 {[%clk 0:00:09.6]} 33. h4
{[%clk 0:01:16.3]} 33... Ra2 {[%clk 0:00:10]} 34. h5 {[%clk 0:01:15.6]} 34...
Rc2 {[%clk 0:00:10.5]} 35. Nxh7 {[%clk 0:01:15.4]} 35... Rxc4 {[%clk 0:00:11.1]}
36. Ng5+ {[%clk 0:01:12.8]} 36... Kf6 {[%clk 0:00:10]} 37. Ne6 {[%clk
0:01:13.2]} 37... Nxd5 {[%clk 0:00:08.1]} 38. Nd8 {[%clk 0:01:07.4]} 38... b6
{[%clk 0:00:03.4]} 39. Nc6 {[%clk 0:01:07.5]} 39... e4 {[%clk 0:00:01.6]} 40.
Rd1 {[%clk 0:01:07.1]} 40... Ke6 {[%clk 0:00:01.1]} 41. Nd8+ {[%clk 0:01:04.9]}
41... Kd7 {[%clk 0:00:01.2]} 42. Rxd5 {[%clk 0:01:04.2]} 42... Kxd8 {[%clk
0:00:01.9]} 43. Rxd6+ {[%clk 0:01:04.6]} 43... Kc7 {[%clk 0:00:02.8]} 44. Bf4
{[%clk 0:01:05]} 44... Kb7 {[%clk 0:00:03.2]} 45. h6 {[%clk 0:01:04.4]} 45...
Ra4 {[%clk 0:00:03.5]} 46. h7 {[%clk 0:01:04.4]} 46... Ra8 {[%clk 0:00:04.2]}
47. Be5 {[%clk 0:01:04.5]} 47... b5 {[%clk 0:00:04]} 48. h8=Q {[%clk 0:01:04.4]}
48... Rxh8 {[%clk 0:00:04.8]} 49. Bxh8 {[%clk 0:01:05.1]} 49... b4 {[%clk
0:00:05.7]} 50. Rd5 {[%clk 0:01:04.6]} 50... c4 {[%clk 0:00:06.6]} 51. Rd4
{[%clk 0:01:05.1]} 51... Kc6 {[%clk 0:00:06.8]} 52. Rxc4+ {[%clk 0:01:05.5]}
52... Kb5 {[%clk 0:00:07.7]} 53. Rc1 {[%clk 0:01:06]} 53... b3 {[%clk
0:00:07.8]} 54. Rb1 {[%clk 0:01:06.4]} 54... Kb4 {[%clk 0:00:08.7]} 55. Rb2
{[%clk 0:01:06.6]} 55... Kc4 {[%clk 0:00:09.6]} 56. g4 {[%clk 0:01:07.1]} 56...
Kd3 {[%clk 0:00:10.5]} 57. Rxb3+ {[%clk 0:01:07.3]} 57... Ke2 {[%clk 0:00:11.4]}
58. Re3+ {[%clk 0:01:07.4]} 58... Kd2 {[%clk 0:00:11.8]} 59. Rxe4 {[%clk
0:01:07.8]} 59... Kd3 {[%clk 0:00:12.7]} 60. Re3+ {[%clk 0:01:08.4]} 60... Kc4
{[%clk 0:00:13.6]} 61. g5 {[%clk 0:01:09]} 61... Kd5 {[%clk 0:00:14.5]} 62. g6
{[%clk 0:01:09.6]} 62... Kc5 {[%clk 0:00:15.3]} 63. g7 {[%clk 0:01:10]} 63...
Kd6 {[%clk 0:00:16.2]} 64. g8=Q {[%clk 0:01:09.8]} 1-0